bitfinex-derivatives/quotes_BTCF0:USTF0_20241005
["timestamp","ask_amount","ask_price","bid_price","bid_amount"]
[1728146802221,0.121,62102.0,62101.0,0.007]
[1728146803313,0.002,62102.0,62101.0,0.136]
[1728146803722,0.0504244,62102.0,62101.0,0.129]
[1728146804618,0.0504244,62102.0,62101.0,0.136]
[1728146805818,0.07906129,62102.0,62101.0,0.136]
[1728146807623,0.02963689,62102.0,62101.0,0.136]
[1728146808040,0.07906163,62102.0,62101.0,0.136]
[1728146808329,0.02963689,62102.0,62101.0,0.136]
[1728146808529,0.07906107,62102.0,62101.0,0.136]
[1728146809827,0.08169107,62102.0,62101.0,0.136]
[1728146810021,0.05305418,62102.0,62101.0,0.192356]
[1728146810222,0.00363,62102.0,62101.0,0.192356]
[1728146810633,0.0075,62105.0,62101.0,0.31506589]
[1728146810933,0.03658067,62105.0,62103.0,0.08026079]
[1728146811229,0.53931201,62106.0,62103.0,0.08026079]
[1728146811620,0.53931201,62106.0,62102.0,0.08026079]
[1728146811621,0.537152,62106.0,62102.0,0.08026079]
[1728146811824,0.176352,62106.0,62102.0,0.08026079]
[1728146812022,0.3608,62104.0,62102.0,0.08026079]
[1728146812731,0.3608,62104.0,62103.0,0.007]
[1728146813232,0.3608,62104.0,62102.0,0.08026079]
[1728146813233,0.3618,62104.0,62102.0,0.08826079]
[1728146813931,0.3618,62104.0,62103.0,0.005]
[1728146814835,0.3608,62104.0,62103.0,0.012]
[1728146815230,0.3608,62104.0,62103.0,0.007]
[1728146815539,0.4808,62104.0,62103.0,0.007]
[1728146816928,0.4808,62104.0,62103.0,0.012]
[1728146817631,0.4808,62104.0,62103.0,0.21497097]
[1728146818630,0.53022549,62104.0,62103.0,0.012]
[1728146819520,0.4808,62104.0,62103.0,0.012]
[1728146820323,0.3608,62104.0,62103.0,0.132]
[1728146820525,0.41022546,62104.0,62103.0,0.132]
[1728146820925,0.3608,62104.0,62103.0,0.132]
[1728146821436,0.41022501,62104.0,62103.0,0.132]
[1728146824937,0.41022501,62104.0,62103.0,0.188355]
[1728146825729,0.32051495,62104.0,62103.0,0.46042009]
[1728146827839,0.0112,62108.0,62107.0,0.056351]
[1728146828040,0.17599713,62109.0,62108.0,0.05635]
[1728146828337,0.17599713,62109.0,62108.0,0.53710158]
[1728146828546,0.17599713,62109.0,62108.0,0.56870158]
[1728146828933,0.17599713,62109.0,62108.0,0.69739756]
[1728146829440,0.17599713,62109.0,62108.0,0.56870158]
[1728146829946,0.17599713,62109.0,62108.0,0.69739756]
[1728146830442,0.17599713,62109.0,62108.0,0.56970158]
[1728146830634,0.17599713,62109.0,62108.0,0.57170158]
[1728146831033,0.17599713,62109.0,62108.0,1.65474158]
[1728146833137,0.0112,62112.0,62111.0,0.056347]
[1728146833349,0.0112,62116.0,62114.0,0.056344]
[1728146833645,0.06754,62119.0,62115.0,0.12270826]
[1728146833949,0.06754,62119.0,62118.0,0.12]
[1728146834140,0.05634,62119.0,62118.0,0.12]
[1728146834445,0.00241567,62120.0,62118.0,0.12]
[1728146835043,0.005,62119.0,62118.0,0.121]
[1728146835237,0.005,62119.0,62118.0,0.178341]
[1728146835436,0.011,62119.0,62118.0,0.178341]
[1728146836754,0.006,62119.0,62118.0,0.177341]
[1728146836951,0.01341567,62120.0,62118.0,0.178341]
[1728146837647,0.011,62119.0,62118.0,0.178341]
[1728146838148,0.005,62119.0,62118.0,0.178341]
[1728146838341,0.01341567,62120.0,62118.0,0.122]
[1728146838538,0.01341567,62120.0,62119.0,0.05634]
[1728146838744,0.00741567,62120.0,62119.0,0.05634]
[1728146839849,0.005,62120.0,62119.0,0.41714]
[1728146840051,0.0112,62123.0,62121.0,0.056338]
[1728146840255,0.056336,62124.0,62122.0,0.12]
[1728146841345,0.062336,62124.0,62122.0,0.121]
[1728146841545,0.006,62124.0,62122.0,0.121]
[1728146841747,0.006,62124.0,62123.0,0.056337]
[1728146842944,0.011,62124.0,62123.0,0.056337]
[1728146843547,0.060407,62124.0,62123.0,0.057337]
[1728146843753,0.060407,62124.0,62123.0,0.058337]
[1728146844844,0.18696481,62124.0,62123.0,0.058337]
[1728146845051,0.060407,62124.0,62123.0,0.058337]
[1728146845353,0.18693921,62124.0,62123.0,0.058337]
[1728146845853,0.23634621,62124.0,62123.0,0.058337]
[1728146847059,0.060407,62124.0,62123.0,0.058337]
[1728146848762,0.060407,62124.0,62123.0,0.178337]
[1728146848763,0.011,62124.0,62123.0,0.178337]
[1728146855758,0.06040546,62124.0,62123.0,0.178337]
[1728146859971,0.06040754,62124.0,62123.0,0.178337]
[1728146860177,0.26873403,62124.0,62123.0,0.178337]
[1728146863274,0.26873397,62124.0,62123.0,0.178337]
[1728146863873,0.21932649,62124.0,62123.0,0.178337]
[1728146864179,0.011,62124.0,62123.0,0.12268318]
[1728146864379,0.011,62124.0,62123.0,0.058337]
[1728146865574,0.04028219,62124.0,62123.0,0.058337]
[1728146869581,0.04291219,62124.0,62123.0,0.058337]
[1728146872688,0.09924819,62124.0,62123.0,0.002]
[1728146873089,0.09924819,62124.0,62123.0,0.06639373]
[1728146877695,0.09924819,62124.0,62123.0,0.002]
[1728146877891,0.14865702,62124.0,62123.0,0.002]
[1728146878090,0.20639084,62124.0,62123.0,0.002]
[1728146880800,0.14865702,62124.0,62123.0,0.002]
[1728146880990,0.20639084,62124.0,62123.0,0.002]
[1728146881200,0.20639256,62124.0,62123.0,0.002]
[1728146882202,0.56719256,62124.0,62123.0,0.002]
[1728146884097,0.20639256,62124.0,62123.0,0.002]
[1728146884296,0.56719256,62124.0,62123.0,0.002]
[1728146885998,0.46004819,62124.0,62123.0,0.002]
[1728146890699,0.09924819,62124.0,62123.0,0.002]
[1728146890899,0.46004819,62124.0,62123.0,0.002]
[1728146891395,0.46004819,62124.0,62121.0,0.06438723]
[1728146891396,0.056337,62123.0,62121.0,0.06438723]
[1728146891699,0.176337,62123.0,62122.0,0.04829514]
[1728146892195,0.056337,62122.0,62121.0,0.04829514]
[1728146892394,0.056338,62121.0,62120.0,0.056339]
[1728146892994,0.10575078,62121.0,62120.0,0.056339]
[1728146893395,0.31407727,62121.0,62120.0,0.056339]
[1728146894096,0.31407727,62121.0,62117.0,0.12]
[1728146894302,0.04941278,62120.0,62117.0,0.12]
[1728146894503,0.04941278,62119.0,62117.0,0.12]
[1728146894699,0.04941278,62118.0,62117.0,0.12]
[1728146895297,0.04941278,62118.0,62117.0,0.121]
[1728146895704,0.0494128,62118.0,62117.0,0.121]
[1728146895904,0.0564128,62118.0,62117.0,0.122]
[1728146896703,0.0564128,62118.0,62117.0,0.121]
[1728146896905,0.0634128,62118.0,62117.0,0.122]
[1728146900609,0.06341292,62118.0,62117.0,0.122]
[1728146900903,0.014,62118.0,62117.0,0.122]
[1728146907110,0.070341,62118.0,62117.0,0.002]
[1728146908010,0.11975392,62118.0,62117.0,0.002]
[1728146912012,0.17749253,62118.0,62117.0,0.002]
[1728146912608,0.11975392,62118.0,62117.0,0.002]
[1728146915216,0.11975624,62118.0,62117.0,0.002]
[1728146915516,0.32808273,62118.0,62117.0,0.002]
[1728146916126,0.070341,62118.0,62117.0,0.05029046]
[1728146918216,0.070341,62118.0,62117.0,0.002]
[1728146918924,0.070341,62118.0,62117.0,0.00089077]
[1728146919420,0.014,62118.0,62110.0,0.04829327]
[1728146919623,0.056347,62111.0,62110.0,0.04829327]
[1728146920109,0.056347,62111.0,62108.0,0.06438728]
[1728146920110,0.0317,62111.0,62108.0,0.06438728]
[1728146920311,0.176349,62109.0,62108.0,0.06438728]
[1728146920711,0.12,62109.0,62108.0,0.04827463]
[1728146920909,0.176349,62109.0,62108.0,0.04827463]
[1728146921324,0.05635,62108.0,62107.0,0.04827463]
[1728146921517,0.05635,62108.0,62106.0,0.04827463]
[1728146921518,0.056351,62107.0,62106.0,0.04827463]
[1728146921724,0.056352,62106.0,62103.0,0.12074228]
[1728146921925,0.12,62104.0,62103.0,0.12074228]
[1728146922117,0.12,62104.0,62103.0,0.06438728]
[1728146922312,0.176354,62104.0,62103.0,0.06438728]
[1728146922514,0.176354,62104.0,62102.0,0.06438728]
[1728146922721,0.12,62103.0,62102.0,0.06438728]
[1728146923120,0.176355,62103.0,62102.0,0.06438728]
[1728146924331,0.176355,62103.0,62102.0,0.07238728]
[1728146924525,0.176355,62103.0,62102.0,0.008]
[1728146925023,0.001,62103.0,62102.0,0.014]
[1728146926116,0.002,62103.0,62102.0,0.014]
[1728146930522,0.002,62103.0,62102.0,0.06220386]
[1728146931123,0.002,62103.0,62102.0,0.014]
[1728146933730,0.002,62103.0,62102.0,0.070356]
[1728146933924,0.002,62103.0,62102.0,0.131956]
[1728146938028,0.02726812,62109.0,62103.0,0.056354]
[1728146938337,0.02726812,62109.0,62106.0,0.12]
[1728146938534,0.02726812,62109.0,62107.0,0.12269863]
[1728146938833,0.02726812,62109.0,62108.0,0.12269863]
[1728146939836,0.02826812,62109.0,62108.0,0.12269863]
[1728146940332,0.02726812,62109.0,62108.0,0.12469863]
[1728146941830,0.02726812,62109.0,62108.0,0.24469863]
[1728146942637,0.02726812,62109.0,62108.0,0.3411216]
[1728146942948,0.02865167,62110.0,62108.0,0.24469863]
[1728146943239,0.3608,62111.0,62109.0,0.2754706]
[1728146943440,0.3608,62111.0,62110.0,0.12269863]
[1728146943646,0.417148,62111.0,62110.0,0.2191216]
[1728146944943,0.418148,62111.0,62110.0,0.2191216]
[1728146945143,0.057348,62111.0,62110.0,0.2191216]
[1728146945345,0.08585239,62111.0,62110.0,0.2191216]
[1728146945745,0.20585239,62111.0,62110.0,0.12269863]
[1728146946138,0.05635,62108.0,62104.0,0.056353]
[1728146946345,0.16942028,62107.0,62104.0,0.056353]
[1728146946547,0.04942028,62106.0,62104.0,0.056353]
[1728146947246,0.049423,62105.0,62104.0,0.060353]
[1728146947447,0.049423,62105.0,62104.0,0.066353]
[1728146949544,0.050423,62105.0,62104.0,0.066353]
[1728146949746,0.050423,62105.0,62104.0,0.062353]
[1728146949946,0.050423,62105.0,62104.0,0.066353]
[1728146950548,0.050423,62105.0,62104.0,0.01]
[1728146950739,0.106776,62105.0,62104.0,0.01]
[1728146951046,0.106776,62105.0,62104.0,0.13]
[1728146952047,0.10677589,62105.0,62104.0,0.13]
[1728146953144,0.057353,62105.0,62104.0,0.40205487]
[1728146955147,0.057353,62105.0,62104.0,0.28205487]
[1728146955340,0.057353,62105.0,62104.0,0.40205487]
[1728146956752,0.057353,62105.0,62104.0,0.28205487]
[1728146956943,0.057353,62105.0,62104.0,0.40205487]
[1728146960952,0.057353,62105.0,62104.0,0.40205289]
[1728146961152,0.057353,62105.0,62104.0,0.13]
[1728146968155,0.16452623,62105.0,62104.0,0.11585252]
[1728146971356,0.16452588,62105.0,62104.0,0.11585252]
[1728146974262,0.16452588,62105.0,62102.0,0.12]
[1728146974453,0.10717288,62104.0,62102.0,0.12]
[1728146974759,0.10717288,62103.0,62102.0,0.12]
[1728146975455,0.10717288,62103.0,62102.0,0.126]
[1728146975664,0.10717288,62103.0,62102.0,0.014]
[1728146976154,0.10717288,62103.0,62101.0,0.056356]
[1728146976463,0.10717288,62103.0,62102.0,0.1367044]
[1728146976464,0.002,62103.0,62102.0,0.1367044]
[1728146977955,0.002,62103.0,62102.0,0.1287044]
[1728146978155,0.002,62103.0,62102.0,0.1227044]
[1728146978460,0.002,62103.0,62102.0,0.20325602]
[1728146978461,0.057355,62103.0,62102.0,0.20325602]
[1728146978764,0.057355,62103.0,62102.0,0.21125602]
[1728146978765,0.058355,62103.0,62102.0,0.21125602]
[1728146978959,0.08680819,62103.0,62102.0,0.21725602]
[1728146979555,0.20680819,62103.0,62102.0,0.09455162]
[1728146979755,0.20680819,62103.0,62102.0,0.014]
[1728146979958,0.20680819,62103.0,62102.0,0.07844269]
[1728146980161,0.20680819,62103.0,62102.0,0.07842745]
[1728146980463,0.20680819,62103.0,62102.0,0.014]
[1728146980666,0.20680819,62103.0,62102.0,0.06232505]
[1728146981254,0.20680819,62103.0,62102.0,0.014]
[1728146982268,0.56760819,62103.0,62102.0,0.014]
[1728146983464,0.6747951,62103.0,62102.0,0.014]
[1728146984872,0.88364897,62103.0,62102.0,0.014]
[1728146987259,0.52284897,62103.0,62102.0,0.014]
[1728146987459,0.6747951,62103.0,62102.0,0.014]
[1728146990671,0.62536586,62103.0,62102.0,0.014]
[1728146990883,0.67479507,62103.0,62102.0,0.014]
[1728146991370,0.56760819,62103.0,62102.0,0.014]
[1728146993376,0.20680819,62103.0,62102.0,0.014]
[1728146993876,0.56760819,62103.0,62102.0,0.014]
[1728146998385,0.67479513,62103.0,62102.0,0.014]
[1728147000579,0.67479515,62103.0,62102.0,0.014]
[1728147003186,0.67479515,62103.0,62102.0,0.012]
[1728147003187,0.67379515,62103.0,62102.0,0.012]
[1728147003584,0.31299515,62103.0,62102.0,0.012]
[1728147003774,0.31299547,62103.0,62102.0,0.004]
[1728147003981,0.61503778,62103.0,62102.0,0.004]
[1728147004286,0.67379547,62103.0,62102.0,0.01]
[1728147005384,0.31299547,62103.0,62102.0,0.01]
[1728147005681,0.67379547,62103.0,62102.0,0.01]
[1728147006375,0.56660819,62103.0,62102.0,0.01]
[1728147008188,0.56660819,62103.0,62102.0,0.05832505]
[1728147009189,0.56660819,62103.0,62102.0,0.01]
[1728147009587,0.56660819,62103.0,62102.0,0.05833149]
[1728147010193,0.56660819,62103.0,62102.0,0.01]
[1728147010586,0.20580819,62103.0,62102.0,0.01]
[1728147010789,0.56660819,62103.0,62102.0,0.01]
[1728147012078,0.20580819,62103.0,62102.0,0.01]
[1728147012283,0.56660819,62103.0,62102.0,0.01]
[1728147012890,0.56660819,62103.0,62102.0,0.05834279]
[1728147013394,0.56660819,62103.0,62102.0,0.01]
[1728147014985,0.08580819,62103.0,62102.0,0.01]
[1728147015291,0.08580819,62103.0,62102.0,0.066356]
[1728147015593,0.08580819,62103.0,62102.0,0.01]
[1728147018093,0.44660819,62103.0,62102.0,0.01]
[1728147020093,0.44660819,62103.0,62102.0,0.00045976]
[1728147021598,0.44660819,62103.0,62098.0,0.11188617]
[1728147021599,0.056357,62100.0,62098.0,0.11188617]
[1728147021794,0.056357,62100.0,62099.0,0.0324]
[1728147021990,0.16353637,62100.0,62099.0,0.0324]
[1728147023094,0.16453637,62100.0,62099.0,0.0414]
[1728147023495,0.2039686,62100.0,62099.0,0.0414]
[1728147024495,0.2049686,62100.0,62099.0,0.0414]
[1728147025193,0.2039686,62100.0,62099.0,0.0484]
[1728147025402,0.2049686,62100.0,62099.0,0.0484]
[1728147027808,0.41366812,62100.0,62099.0,0.0484]
[1728147028508,0.41366812,62100.0,62099.0,0.016]
[1728147028509,0.38705652,62100.0,62099.0,0.016]
[1728147028700,0.178357,62100.0,62099.0,0.016]
[1728147030904,0.178357,62100.0,62099.0,0.06434279]
[1728147031110,0.178357,62100.0,62099.0,0.016]
[1728147033301,0.058357,62100.0,62099.0,0.016]
[1728147043316,0.058357,62100.0,62099.0,0.00077481]
[1728147043504,0.14861544,62100.0,62099.0,0.417158]
[1728147043705,0.14861544,62100.0,62099.0,0.537158]
[1728147046912,0.14861544,62100.0,62099.0,0.176358]
[1728147049724,0.14861544,62100.0,62099.0,0.15587632]
[1728147051524,0.002,62100.0,62099.0,0.20421911]
[1728147053329,0.056358,62099.0,62098.0,0.04834279]
[1728147053523,0.002,62100.0,62096.0,0.04834279]
[1728147053524,0.056359,62098.0,62096.0,0.04834279]
[1728147056331,0.056359,62098.0,62096.0,0.05534279]
[1728147056926,0.056359,62098.0,62096.0,0.04834279]
[1728147057122,0.056359,62098.0,62096.0,0.05534279]
[1728147057123,0.057359,62098.0,62096.0,0.05534279]
[1728147057320,0.058359,62098.0,62096.0,0.007]
[1728147057528,0.058359,62098.0,62096.0,0.05534279]
[1728147058626,0.058359,62098.0,62096.0,0.007]
[1728147058627,0.08886189,62097.0,62096.0,0.007]
[1728147059823,0.08886189,62097.0,62096.0,0.183361]
[1728147060034,0.08986189,62097.0,62096.0,0.183361]
[1728147060325,0.09086189,62097.0,62096.0,0.183361]
[1728147061122,0.09086189,62097.0,62096.0,0.063361]
[1728147063531,0.002,62097.0,62096.0,0.063361]
[1728147063737,0.0908625,62097.0,62096.0,0.063361]
[1728147063931,0.2672225,62097.0,62096.0,0.007]
[1728147064530,0.32497858,62097.0,62096.0,0.007]
[1728147065025,0.23611608,62097.0,62096.0,0.007]
[1728147065225,0.26722376,62097.0,62096.0,0.007]
[1728147066120,0.32497984,62097.0,62096.0,0.007]
[1728147066521,0.17836,62097.0,62096.0,0.007]
[1728147067123,0.17836,62097.0,62096.0,0.05530496]
[1728147068730,0.17836,62097.0,62096.0,0.007]
[1728147069033,0.53916,62097.0,62096.0,0.007]
[1728147071424,1.02228,62097.0,62096.0,0.007]
[1728147071623,1.56592,62097.0,62090.0,0.04830496]
[1728147071832,0.176366,62091.0,62090.0,0.04830496]
[1728147072033,0.056366,62090.0,62089.0,0.04830496]
[1728147072234,0.056367,62089.0,62088.0,0.04830496]
[1728147072440,0.119867,62089.0,62088.0,0.04830496]
[1728147073133,0.056368,62088.0,62087.0,0.04830496]
[1728147073434,0.176368,62088.0,62087.0,0.04830496]
[1728147073640,0.05637,62086.0,62084.0,0.3608]
[1728147073939,0.20887829,62085.0,62083.0,0.056372]
[1728147074130,0.08887829,62084.0,62083.0,0.056372]
[1728147074333,0.08888197,62084.0,62083.0,0.056372]
[1728147074643,0.08888197,62084.0,62082.0,0.056374]
[1728147074826,0.08888197,62083.0,62082.0,0.056374]
[1728147075327,0.03944293,62083.0,62082.0,0.056374]
[1728147076539,0.04044293,62083.0,62082.0,0.056374]
[1728147076740,0.08988197,62083.0,62082.0,0.056374]
[1728147077238,0.09088197,62083.0,62082.0,0.056374]
[1728147077638,0.09088197,62083.0,62079.0,0.12]
[1728147077935,0.20888197,62082.0,62081.0,0.056374]
[1728147079040,0.08888314,62082.0,62081.0,0.056374]
[1728147079743,0.08988314,62082.0,62081.0,0.056374]
[1728147080241,0.09088314,62082.0,62081.0,0.056374]
[1728147080446,0.05776674,62087.0,62080.0,0.0311]
[1728147080636,0.17621231,62081.0,62080.0,0.087476]
[1728147080838,0.17621231,62081.0,62080.0,0.207476]
[1728147081037,0.0113,62087.0,62080.0,0.1511]
[1728147081038,0.23397905,62083.0,62080.0,0.1511]
[1728147081238,0.17621231,62083.0,62082.0,0.056374]
[1728147081541,0.17621231,62083.0,62082.0,0.39573906]
[1728147081742,0.17621231,62083.0,62082.0,0.29911023]
[1728147081935,0.17621231,62083.0,62082.0,0.39573906]
[1728147082250,0.17621231,62083.0,62082.0,0.29911023]
[1728147082549,0.17621231,62083.0,62082.0,0.39573906]
[1728147083239,0.17721231,62083.0,62082.0,0.39673906]
[1728147083640,0.17721231,62083.0,62082.0,0.30011023]
[1728147083843,0.17821231,62083.0,62082.0,0.39655112]
[1728147084144,0.17821231,62083.0,62082.0,0.30011023]
[1728147086041,0.17821231,62083.0,62082.0,0.39655967]
[1728147087133,0.17821231,62083.0,62082.0,0.30011023]
[1728147087331,0.17821231,62083.0,62082.0,0.39657391]
[1728147087545,0.002,62083.0,62082.0,0.30011023]
[1728147087948,0.002,62083.0,62082.0,0.3965731]
[1728147088138,0.002,62083.0,62082.0,0.30011023]
[1728147088751,0.002,62083.0,62082.0,0.177374]
[1728147089353,0.002,62083.0,62082.0,0.057374]
[1728147089646,0.0514379,62083.0,62082.0,0.057374]
[1728147091154,0.1950639,62083.0,62082.0,0.057374]
[1728147095243,0.1950639,62083.0,62082.0,0.177374]
[1728147096746,0.145626,62083.0,62082.0,0.30010901]
[1728147100856,0.145626,62083.0,62082.0,0.30011031]
[1728147101252,0.145626,62083.0,62082.0,0.39658258]
[1728147101444,0.145626,62083.0,62082.0,0.75738258]
[1728147101754,0.145626,62083.0,62082.0,0.75754592]
[1728147101959,0.145626,62083.0,62082.0,0.66090923]
[1728147102852,0.145626,62083.0,62082.0,0.75754325]
[1728147103055,0.145626,62083.0,62082.0,0.75753987]
[1728147103743,0.145626,62083.0,62082.0,0.66090923]
[1728147107252,0.145626,62083.0,62082.0,0.66091208]
[1728147108864,0.145626,62083.0,62082.0,0.30011208]
[1728147111667,0.20339283,62083.0,62082.0,0.177374]
[1728147111967,0.25282991,62083.0,62082.0,0.177374]
[1728147116849,0.25282955,62083.0,62082.0,0.177374]
[1728147118855,0.145626,62083.0,62082.0,0.30011209]
[1728147120962,0.145626,62083.0,62082.0,0.3001121]
[1728147121956,0.0113,62090.0,62089.0,0.056367]
[1728147122252,0.143626,62090.0,62089.0,0.17909587]
[1728147124167,0.001,62090.0,62089.0,0.18009587]
[1728147124465,0.01371622,62096.0,62095.0,0.056362]
[1728147124764,0.00241622,62096.0,62095.0,0.37958561]
[1728147124963,0.14604222,62096.0,62095.0,0.29907971]
[1728147125160,0.14604222,62096.0,62095.0,0.25682807]
[1728147125362,0.14604222,62096.0,62095.0,0.3795426]
[1728147125870,0.14704222,62096.0,62095.0,0.25982807]
[1728147126255,0.14704222,62096.0,62095.0,0.179362]
[1728147126668,0.14804222,62096.0,62095.0,0.181362]
[1728147127577,0.145626,62096.0,62095.0,0.181362]
[1728147127774,0.10534007,62096.0,62095.0,0.30407288]
[1728147128659,0.10534007,62096.0,62095.0,0.38445123]
[1728147129267,0.10534007,62096.0,62095.0,0.181362]
[1728147132072,0.0113,62102.0,62101.0,0.056356]
[1728147132268,0.0038,62108.0,62107.0,0.056351]
[1728147132460,0.10334007,62108.0,62107.0,0.056351]
[1728147132660,0.10334007,62108.0,62107.0,0.176351]
[1728147133262,0.10334007,62108.0,62107.0,0.22450481]
[1728147133668,0.10334007,62108.0,62107.0,0.25341602]
[1728147133868,0.10334007,62108.0,62107.0,0.04815381]
[1728147133869,0.25392479,62108.0,62107.0,0.04815381]
[1728147134160,0.25992479,62108.0,62107.0,0.12]
[1728147137567,0.25992479,62108.0,62107.0,0.176351]
[1728147137769,0.15658472,62108.0,62107.0,0.176351]
[1728147138470,0.15658268,62108.0,62107.0,0.537151]
[1728147138664,0.15658268,62108.0,62107.0,1.620191]
[1728147139470,0.15658268,62108.0,62107.0,1.020191]
[1728147139865,0.14758268,62108.0,62107.0,0.35254541]
[1728147140073,0.15058268,62108.0,62107.0,0.47254541]
[1728147140478,0.15058268,62108.0,62107.0,0.52889641]
[1728147141076,0.0308,62113.0,62107.0,0.65158121]
[1728147141278,0.0308,62113.0,62110.0,0.20015047]
[1728147141279,0.10334007,62111.0,62110.0,0.20015047]
[1728147141870,0.10334007,62111.0,62110.0,0.12]
[1728147143075,0.11334007,62111.0,62110.0,0.121]
[1728147146675,0.11334007,62111.0,62110.0,0.177348]
[1728147148171,0.11334007,62111.0,62110.0,0.20383604]
[1728147148882,0.20217985,62111.0,62110.0,0.001]
[1728147149891,0.20217985,62111.0,62110.0,0.121]
[1728147150178,0.20217985,62111.0,62110.0,0.001]
[1728147150379,0.25852685,62111.0,62110.0,0.001]
[1728147150780,0.3162706,62111.0,62110.0,0.001]
[1728147150981,0.25852685,62111.0,62110.0,0.001]
[1728147151685,0.20217985,62111.0,62110.0,0.001]
[1728147151878,0.20217985,62111.0,62110.0,0.057348]
[1728147152583,0.11334007,62111.0,62110.0,0.057348]
[1728147152883,0.202181,62111.0,62110.0,0.057348]
[1728147154681,0.202181,62111.0,62110.0,0.001]
[1728147156081,0.11334007,62111.0,62110.0,0.04912807]
[1728147156479,0.11334007,62111.0,62110.0,0.001]
[1728147156680,0.11334007,62111.0,62110.0,0.04912807]
[1728147157288,0.11334007,62111.0,62110.0,0.001]
[1728147157491,0.11334007,62111.0,62110.0,0.04925321]
[1728147157679,0.11334007,62111.0,62110.0,0.04925329]
[1728147159376,0.11334007,62111.0,62110.0,0.001]
[1728147159682,0.14260119,62111.0,62110.0,0.001]
[1728147162291,0.14260119,62111.0,62110.0,0.06517076]
[1728147163781,0.14260119,62111.0,62110.0,0.001]
[1728147163982,0.23144437,62111.0,62110.0,0.001]
[1728147164178,0.28779137,62111.0,62110.0,0.001]
[1728147166889,0.33721565,62111.0,62110.0,0.001]
[1728147167389,0.34554211,62111.0,62110.0,0.001]
[1728147167593,0.28779819,62111.0,62110.0,0.001]
[1728147170894,0.24836945,62111.0,62110.0,0.001]
[1728147171094,0.19894819,62111.0,62110.0,0.001]
[1728147171300,0.19894819,62111.0,62110.0,0.04928623]
[1728147173000,0.19894819,62111.0,62110.0,0.001]
[1728147173703,0.19894819,62111.0,62110.0,0.0492856]
[1728147173907,0.19894819,62111.0,62110.0,0.001]
[1728147174110,0.19894819,62111.0,62110.0,0.04928608]
[1728147174401,0.19894819,62111.0,62110.0,0.001]
[1728147175106,0.19894819,62111.0,62110.0,0.04928624]
[1728147175800,0.19894819,62111.0,62110.0,0.04928636]
[1728147176001,0.19894819,62111.0,62110.0,0.001]
[1728147177503,0.55974819,62111.0,62110.0,0.001]
[1728147178799,0.55974819,62111.0,62110.0,0.04928636]
[1728147178996,0.70634748,62111.0,62110.0,0.001]
[1728147179307,0.34554748,62111.0,62110.0,0.001]
[1728147179512,0.70634748,62111.0,62110.0,0.001]
[1728147180099,0.34554748,62111.0,62110.0,0.001]
[1728147180301,0.64859876,62111.0,62110.0,0.001]
[1728147180501,0.70634748,62111.0,62110.0,0.001]
[1728147181310,0.91438611,62111.0,62110.0,0.001]
[1728147181715,0.70634748,62111.0,62110.0,0.001]
[1728147182704,0.34554748,62111.0,62110.0,0.001]
[1728147182907,0.70634748,62111.0,62110.0,0.001]
[1728147184817,0.70634816,62111.0,62110.0,0.001]
[1728147186008,0.55974819,62111.0,62110.0,0.1237014]
[1728147186320,0.5194654,62111.0,62110.0,0.1237014]
[1728147187914,0.54834477,62111.0,62110.0,0.1237014]
[1728147189723,0.54834477,62111.0,62110.0,0.12370197]
[1728147190514,0.55097477,62111.0,62110.0,0.12370197]
[1728147193516,0.55097477,62111.0,62110.0,0.20421621]
[1728147193715,1.15097477,62111.0,62110.0,0.001]
[1728147194123,1.09564944,62111.0,62104.0,0.05581044]
[1728147194417,0.056354,62104.0,62103.0,0.04831044]
[1728147194623,0.176354,62104.0,62103.0,0.04831044]
[1728147194812,0.28724007,62104.0,62102.0,0.04831044]
[1728147195019,0.176355,62103.0,62102.0,0.04831044]
[1728147195219,0.176355,62103.0,62099.0,0.04831044]
[1728147195220,0.27969507,62103.0,62099.0,0.04831044]
[1728147195414,0.27969707,62100.0,62099.0,0.04831044]
[1728147195725,0.27969707,62100.0,62098.0,0.04829253]
[1728147195726,0.58414007,62100.0,62098.0,0.04829253]
[1728147195909,0.58414007,62100.0,62094.0,0.05070753]
[1728147195910,0.10334007,62095.0,62094.0,0.05070753]
[1728147196112,0.10334007,62095.0,62094.0,0.002415]
[1728147196113,0.27970207,62095.0,62094.0,0.002415]
[1728147197026,0.28170207,62095.0,62094.0,0.022415]
[1728147199217,0.64250207,62095.0,62094.0,0.022415]
[1728147199412,0.67086715,62095.0,62094.0,0.022415]
[1728147200321,0.55086715,62095.0,62094.0,0.022415]
[1728147201122,0.63973949,62095.0,62094.0,0.022415]
[1728147201526,0.78404767,62095.0,62094.0,0.022415]
[1728147202524,0.59030581,62095.0,62094.0,0.142415]
[1728147203429,0.56194073,62095.0,62094.0,0.142415]
[1728147204224,0.50557873,62095.0,62094.0,0.198778]
[1728147204424,0.46614007,62095.0,62094.0,0.198778]
[1728147204729,0.3628,62095.0,62094.0,0.198778]
[1728147206127,0.04143568,62095.0,62094.0,0.198778]
[1728147206336,0.002,62095.0,62094.0,0.198778]
[1728147206540,0.002,62095.0,62094.0,1.281898]
[1728147206829,0.0038,62101.0,62094.0,1.225535]
[1728147207031,0.0038,62104.0,62102.0,0.056356]
[1728147207238,0.14800818,62105.0,62102.0,0.056356]
[1728147207239,0.03943137,62103.0,62102.0,0.056356]
[1728147207534,0.14277144,62103.0,62102.0,0.176356]
[1728147209036,0.14277144,62103.0,62102.0,0.29906348]
[1728147209037,0.10334007,62103.0,62102.0,0.29906348]
[1728147209438,0.10334007,62103.0,62102.0,0.30406348]
[1728147209732,0.15969507,62103.0,62102.0,0.24770748]
[1728147210136,0.15969507,62103.0,62102.0,0.32805053]
[1728147210339,0.15969507,62103.0,62102.0,0.20534305]
[1728147211133,0.15969507,62103.0,62102.0,0.125]
[1728147211432,0.15969507,62103.0,62102.0,0.08834305]
[1728147211745,0.15969507,62103.0,62102.0,0.008]
[1728147213031,0.15969507,62103.0,62102.0,0.08834305]